fUSD/lending_fUSD_20240114
["ID","MTS","AMOUNT","RATE_DAILY","PERIOD"]
[311543215,1705209040011,-987.52046579,0.00041,30]
[311543218,1705209040034,-3041.18993508,0.00041,33]
[311543222,1705209040058,-156.06596588,0.00041015,30]
[311543225,1705209040081,-193.73671226,0.00041029,30]
[311543229,1705209040104,-158.46488988,0.00041034,30]
[311543232,1705209040127,-1195.9736204,0.00041053,30]
[311543236,1705209040151,-170.89534395,0.00041059,30]
[311543239,1705209040174,-463.01679553,0.0004107,30]
[311543243,1705209040198,-209.3437011,0.00041095,30]
[311543247,1705209040224,-500.0,0.00041095,30]
[311543250,1705209040247,-574.99538296,0.00041095,30]
[311543254,1705209040273,-5263.55393651,0.000411,30]
[311543257,1705209040296,-151.17119292,0.00041108,30]
[311543261,1705209040318,-156.06596588,0.0004111,30]
[311543264,1705209040341,-374.58164917,0.00041128,30]
[311543267,1705209040365,-788.70035094,0.00041162,30]
[311543268,1705209040389,-170.89534399,0.00041182,30]
[311543269,1705209040413,-157.28338151,0.00041183,30]
[311543270,1705209040437,-788.70035094,0.00041196,30]
[311543271,1705209040461,-158.46488988,0.00041206,30]
[311543272,1705209040484,-156.35152316,0.00041244,30]
[311543273,1705209040506,-168.64539598,0.0004126,30]
[311543274,1705209040529,-155.88867443,0.00041272,30]
[311543275,1705209040552,-150.24382056,0.000413,30]
[311543276,1705209040575,-151.17119292,0.00041338,30]
[311543277,1705209040598,-413.51312056,0.00041339,30]
[311543278,1705209040624,-1208.0,0.00041347,30]
[311543279,1705209040649,-413.51312056,0.00041362,30]
[311543280,1705209040672,-153.75176477,0.00041374,30]
[311543281,1705209040695,-151.17119292,0.00041377,30]
[311543282,1705209040718,-156.06596588,0.00041385,30]
[311543283,1705209040742,-422.98130935,0.000414,30]
[311543284,1705209040766,-253.0,0.000414,31]
[311543285,1705209040789,-156.06596588,0.00041411,30]
[311543286,1705209040812,-151.17119292,0.00041435,30]
[311543287,1705209040837,-182.25003522,0.00041455,30]
[311543288,1705209040861,-157.28338151,0.00041458,30]
[311543289,1705209040884,-374.58164917,0.00041481,30]
[311543290,1705209040909,-150.24382056,0.00041494,30]
[311543291,1705209040932,-167.59683662,0.00041494,30]
[311543292,1705209040956,-151.17119292,0.00041495,30]
[311543293,1705209040980,-168.64539598,0.0004152,30]
[311543294,1705209041004,-463.01679553,0.00041546,30]
[311543295,1705209041027,-193.73671226,0.00041547,30]
[311543296,1705209041051,-788.70035094,0.00041591,30]
[311543297,1705209041075,-193.73671226,0.00041607,30]
[311543298,1705209041098,-463.01679553,0.00041616,30]
[311543299,1705209041122,-168.64539598,0.00041625,30]
[311543300,1705209041147,-1195.9736204,0.00041632,30]
[311543301,1705209041170,-158.46488988,0.00041639,30]
[311543302,1705209041193,-788.70035094,0.00041647,30]
[311543303,1705209041216,-259.46110986,0.0004166,30]
[311543304,1705209041241,-1195.9736204,0.00041674,30]
[311543305,1705209041265,-155.93501535,0.00041694,30]
[311543306,1705209041288,-182.25003522,0.00041706,30]
[311543307,1705209041311,-150.24382056,0.00041707,30]
[311543308,1705209041335,-463.01679553,0.00041719,30]
[311543309,1705209041357,-156.06596588,0.00041774,30]
[311543310,1705209041379,-463.01679553,0.00041786,30]
[311543311,1705209041403,-1000.0,0.000418,30]
[311543312,1705209041426,-463.01679553,0.00041807,30]
[311543313,1705209041450,-463.01679553,0.00041816,30]
[311543317,1705209041474,-160.62772287,0.00041849,30]
[311543320,1705209041497,-167.62505345,0.00041853,30]
[311543321,1705209041520,-182.25003522,0.00041867,30]
[311543322,1705209041543,-168.64539598,0.00041886,30]
[311543323,1705209041568,-152.79566131,0.00041888,30]
[311543324,1705209041591,-48252.371885,0.000419,30]
[311543325,1705209041614,-251185.0,0.000419,33]
[311543326,1705209041637,-253.0,0.000419,31]
[311543327,1705209041662,-500.0,0.00041917,30]
[311543328,1705209041686,-374.58164917,0.00041922,30]
[311543329,1705209041722,-158.46488988,0.00041924,30]
[311543330,1705209041747,-413.51312056,0.00041935,30]
[311543331,1705209041771,-463.01679553,0.00041948,30]
[311543332,1705209041795,-155.93501539,0.00041953,30]
[311543333,1705209041818,-193.73671226,0.00041959,30]
[311543334,1705209041843,-1195.9736204,0.00041979,30]
[311543335,1705209041869,-500.0,0.00041987,33]
[311543336,1705209041893,-3000.0,0.00042,30]
[311543337,1705209041918,-10000.0,0.00042,30]
[311543338,1705209041942,-1000.0,0.00042,31]
[311543339,1705209041968,-2000.0,0.00042,30]
[311543340,1705209041993,-504.8339422,0.00042,30]
[311543341,1705209042016,-177.36137633,0.00042,30]
[311543342,1705209042042,-33973.4631864,0.00042,30]
[311543343,1705209042066,-527.73331879,0.00042,30]
[311543344,1705209042090,-725.25437018,0.00042,30]
[311543345,1705209042112,-1000.0,0.00042,30]
[311543346,1705209042135,-4409.97573606,0.00042,30]
[311543347,1705209042367,-1590.8319892,0.00042,40]
[311543348,1705209042394,-151.17119292,0.00042014,30]
[311543349,1705209042417,-157.28338151,0.00042028,30]
[311543350,1705209042442,-413.51312056,0.00042058,30]
[311543351,1705209042467,-156.06596588,0.00042074,30]
[311543352,1705209042490,-374.58164917,0.00042074,30]
[311543353,1705209042513,-788.70035094,0.00042094,30]
[311543354,1705209042536,-788.70035094,0.00042149,30]
[311543355,1705209042562,-168.64539598,0.00042188,30]
[311543356,1705209042585,-1195.9736204,0.0004219,30]
[311543357,1705209042608,-157.28338151,0.00042254,30]
[311543358,1705209042631,-193.73671226,0.0004228,30]
[311543359,1705209042656,-413.51312056,0.00042317,30]
[311543360,1705209042680,-413.51312056,0.00042355,30]
[311543361,1705209042705,-152.79566131,0.00042367,30]
[311543364,1705209042729,-168.64539598,0.00042387,30]
[311543366,1705209042754,-253.0,0.000424,32]
[311543368,1705209042779,-463.01679553,0.0004242,30]
[311543371,1705209042804,-374.58164929,0.00042425,30]
[311543372,1705209042829,-151.17119302,0.00042426,30]
[311543373,1705209042854,-1195.9736204,0.0004245,30]
[311543374,1705209042878,-158.46488995,0.00042458,30]
[311543375,1705209042904,-500.0,0.00042465,30]
[311543376,1705209042927,-158.72510325,0.00042497,30]
[311543377,1705209042954,-788.70035122,0.00042498,30]
[311543378,1705209042978,-168.64539606,0.0004258,30]
[311543379,1705209043002,-156.06596588,0.00042631,30]
[311543380,1705209043026,-413.5131207,0.00042635,30]
[311543381,1705209043050,-157.28338151,0.00042648,30]
[311543382,1705209043074,-150.24382056,0.00042657,30]
[311543383,1705209043098,-160.6277229,0.0004266,30]
[311543384,1705209043122,-157.28338151,0.00042675,30]
[311543385,1705209043148,-3014.17891076,0.00042687,30]
[311543386,1705209043173,-463.01679576,0.00042704,30]
[311543387,1705209043197,-150.2438207,0.00042725,30]
[311543388,1705209043222,-155.88867447,0.00042749,30]
[311543389,1705209043247,-182.25003522,0.00042786,30]
[311543390,1705209043271,-1195.9736204,0.00042816,30]
[311543391,1705209043295,-156.06596588,0.00042842,30]
[311543392,1705209043319,-182.25003522,0.00042844,30]
[311543393,1705209043343,-193.73671246,0.00042853,30]
[311543394,1705209043366,-152.79566144,0.00042854,30]
[311543395,1705209043390,-156.06596588,0.00042881,30]
[311543396,1705209043417,-200000.0,0.000429,31]
[311543397,1705209043442,-253.0,0.000429,32]
[311543398,1705209043468,-1195.97362042,0.00042901,30]
[311543399,1705209043494,-156.06596607,0.00042906,30]
[311543400,1705209043519,-157.28338151,0.00042911,30]
[311543401,1705209043544,-157.28338161,0.00042947,30]
[311543402,1705209043567,-182.25003522,0.00042949,30]
[311543403,1705209043591,-182.25003522,0.00042953,30]
[311543404,1705209043615,-156.35152318,0.00042971,30]
[311543405,1705209043639,-2000.00000321,0.00043,30]
[311543406,1705209043665,-1383.10983913,0.00043,30]
[311543407,1705209043688,-1000.0,0.00043,30]
[311543408,1705209043711,-1000.0,0.00043,30]
[311543409,1705209043735,-527.0,0.00043,30]
[311543410,1705209043757,-725.0,0.00043,30]
[311543411,1705209043780,-356.75033559,0.00043,30]
[311543412,1705209043804,-563.15635127,0.00043,30]
[311543413,1705209043827,-4409.0,0.00043,30]
[311543414,1705209043853,-500.0,0.00043013,30]
[311543415,1705209043877,-1000.0,0.00043014,30]
[311543416,1705209043903,-8489.01144847,0.000433,30]
[311543417,1705209043927,-253.0,0.000434,33]
[311543418,1705209043956,-2000.0,0.000435,30]
[311543419,1705209043980,-386.0,0.000435,30]
[311543420,1705209044003,-285.0,0.000435,30]
[311543421,1705209044029,-500.0,0.00043561,30]
[311543422,1705209044055,-1000.0,0.000438,30]
[311543423,1705209044079,-784.50795005,0.000438,30]
[311543424,1705209044103,-500.0,0.00043835,30]
[311543425,1705209044127,-500.0,0.00043835,30]
[311543426,1705209044153,-543.5729789,0.00043835,30]
[311543427,1705209044177,-500.0,0.00043835,30]
[311543428,1705209044201,-500.0,0.00043835,30]
[311543429,1705209044225,-500.0,0.00043835,30]
[311543430,1705209044251,-500.0,0.00043835,30]
[311543431,1705209044276,-500.0,0.00043835,30]
[311543432,1705209044298,-500.0,0.00043835,30]
[311543433,1705209044321,-290.68831838,0.00043835,30]
[311543434,1705209044346,-359.04168162,0.00043835,30]
[311543435,1705209044368,-500.0,0.00043835,30]
[311543436,1705209044390,-500.0,0.00043835,30]
[311543437,1705209044413,-500.0,0.00043835,30]
[311543438,1705209044437,-5000.0,0.00043835,30]
[311543439,1705209044463,-1500.0,0.00043835,30]
[311543440,1705209044486,-200000.0,0.000439,30]
[311543441,1705209044510,-253.0,0.000439,33]
[311543442,1705209044534,-212.66433356,0.00043972,32]
[311543443,1705209044558,-1500.0,0.00043972,32]
[311543444,1705209044582,-5000.0,0.00043985,30]
[311543445,1705209044610,-3575.50663615,0.00043999,30]
[311543446,1705209044633,-808.33034791,0.00043999,30]
[311543447,1705209044658,-2545.0,0.00044,30]
[311543448,1705209044681,-2000.0,0.00044,30]
[311543449,1705209044706,-1500.0,0.00044,30]
[311543450,1705209044730,-4059.11327447,0.00044,30]
[311543451,1705209044756,-373.54917259,0.00044,30]
[311543452,1705209044779,-4000.0,0.00044,30]
[311543453,1705209044801,-313.09241931,0.00044,31]
[311543454,1705209044826,-1259.0166727,0.00044,31]
[311543455,1705209044850,-1220.09155548,0.00044,30]
[311543456,1705209045031,-1664.0704627,0.00044,30]
[311543457,1705209045055,-289.43759166,0.00044,30]
[311543458,1705209045077,-1000.0,0.00044028,30]
[311543459,1705209045100,-500.0,0.00044109,30]
[311543460,1705209045122,-500.0,0.00044109,30]
[311543461,1705209045145,-500.0,0.00044109,30]
[311543462,1705209045173,-500.0,0.00044109,30]
[311543463,1705209045195,-500.0,0.00044109,30]
[311543464,1705209045217,-500.0,0.00044109,30]
[311543465,1705209045239,-534.95160513,0.00044109,30]
[311543466,1705209045262,-598.89655274,0.00044109,30]
[311543467,1705209045285,-500.0,0.00044383,30]
[311543468,1705209045309,-500.0,0.00044383,30]
[311543469,1705209045332,-500.0,0.00044383,30]
[311543470,1705209045355,-528.06749999,0.00044383,30]
[311543471,1705209045379,-500.0,0.00044383,30]
[311543472,1705209045406,-213.0,0.000445,30]
[311543473,1705209045428,-637.16855149,0.00044575,30]
[311543474,1705209045450,-311.99312181,0.00044575,30]
[311543475,1705209045473,-500.0,0.00044575,30]
[311543476,1705209045496,-500.0,0.00044575,30]
[311543477,1705209045518,-435.01461335,0.00044575,30]
[311543478,1705209045543,-500.0,0.00044575,30]
[311543479,1705209045567,-500.0,0.00044575,30]
[311543480,1705209045592,-526.86294647,0.00044575,30]
[311543481,1705209045617,-500.0,0.00044575,30]
[311543482,1705209045642,-526.86294647,0.00044575,30]
[311543484,1705209045667,-526.86294647,0.00044575,30]
[311543488,1705209045691,-526.86294647,0.00044575,30]
[311543491,1705209045714,-526.86294647,0.00044575,30]
[311543495,1705209045740,-526.86294647,0.00044575,30]
[311543499,1705209045765,-526.86294647,0.00044575,30]
[311543500,1705209045788,-526.86294647,0.00044575,30]
[311543501,1705209045813,-526.86294647,0.00044575,30]
[311543502,1705209045837,-526.86294647,0.00044575,30]
[311543503,1705209045863,-526.86294647,0.00044575,30]
[311543504,1705209045889,-526.86294647,0.00044575,30]
[311543505,1705209045915,-526.86294647,0.00044575,30]
[311543508,1705209045940,-526.86294647,0.00044575,30]
[311543511,1705209045964,-526.86294647,0.00044575,30]
[311543514,1705209045988,-526.86294647,0.00044575,30]
[311543515,1705209046012,-526.86294647,0.00044575,30]
[311543516,1705209046036,-526.86294647,0.00044575,30]
[311543517,1705209046059,-526.86294647,0.00044575,30]
[311543518,1705209046084,-1871.84925138,0.00044575,30]
[311543519,1705209046107,-1871.84925138,0.00044575,30]
[311543520,1705209046130,-1871.84925138,0.00044575,30]
[311543521,1705209046154,-656.25151301,0.00044575,30]
[311543522,1705209046178,-656.25151301,0.00044575,30]
[311543523,1705209046202,-656.25151301,0.00044575,30]
[311543524,1705209046225,-1871.84925138,0.00044575,30]
[311543525,1705209046250,-1871.84925138,0.00044575,30]
[311543526,1705209046274,-656.25151301,0.00044575,30]
[311543527,1705209046298,-656.25151301,0.00044575,30]
[311543528,1705209046321,-656.25151301,0.00044575,30]
[311543529,1705209046344,-656.25151301,0.00044575,30]
[311543530,1705209046366,-656.25151301,0.00044575,30]
[311543531,1705209046389,-656.25151301,0.00044575,30]
[311543532,1705209046412,-656.25151301,0.00044575,30]
[311543533,1705209046435,-656.25151301,0.00044575,30]
[311543534,1705209046456,-656.25151301,0.00044575,30]
[311543535,1705209046479,-656.25151301,0.00044575,30]
[311543536,1705209046501,-656.25151301,0.00044575,30]
[311543537,1705209046523,-631.36879754,0.00044575,30]
[311543538,1705209046547,-631.36879754,0.00044575,30]
[311543539,1705209046570,-152.51688834,0.00044575,30]
[311543540,1705209046594,-539.02108688,0.00044575,30]
[311543541,1705209046618,-500.0,0.00044575,30]
[311543542,1705209046641,-500.0,0.00044575,30]
[311543543,1705209046664,-500.0,0.00044575,30]
[311543544,1705209046686,-500.0,0.00044575,30]
[311543545,1705209046709,-500.0,0.00044575,30]
[311543546,1705209046733,-500.0,0.00044575,30]
[311543547,1705209046757,-500.0,0.00044575,30]
[311543548,1705209046780,-500.0,0.00044575,30]
[311543549,1705209046804,-500.0,0.00044575,30]
[311543550,1705209046828,-500.0,0.00044575,30]
[311543551,1705209046850,-275.76742399,0.00044575,30]
[311543552,1705209046872,-500.0,0.00044575,30]
[311543553,1705209046896,-500.0,0.00044575,30]
[311543554,1705209046919,-500.0,0.00044575,30]
[311543555,1705209046943,-500.0,0.00044575,30]
[311543556,1705209046973,-500.0,0.00044575,30]
[311543557,1705209046998,-161.80869434,0.00044575,30]
[311543558,1705209047022,-500.0,0.00044575,30]
[311543559,1705209047045,-500.0,0.00044575,30]
[311543560,1705209047070,-500.0,0.00044575,30]
[311543561,1705209047093,-500.0,0.00044657,30]
[311543562,1705209047116,-500.0,0.00044657,30]
[311543563,1705209047141,-456.44928956,0.00044657,30]
[311543564,1705209047167,-598984.83182019,0.0004469,31]
[311543565,1705209047190,-476.9803297,0.0004475,30]
[311543566,1705209047213,-456196.72631981,0.000449,30]
[311543567,1705209047238,-50472.0320331,0.000449,30]
[311543568,1705209047261,-200000.0,0.000449,32]
[311543569,1705209047284,-90000.0,0.000449,30]
[311543570,1705209047308,-500.0,0.00044931,30]
[311543571,1705209047331,-282.83909694,0.00044999,30]
[311543572,1705209047355,-943.75440876,0.00045,30]
[311543573,1705209047378,-315.29162198,0.00045,30]
[311543574,1705209047400,-300.55937546,0.00045,30]
[311543575,1705209047423,-1111.62009524,0.00045,32]
[311543576,1705209047446,-2500.0,0.00045,30]
[311543577,1705209047612,-1084.21441398,0.00045,32]
[311543578,1705209047638,-312.0,0.00045,30]
[311543579,1705209047660,-5277.72218668,0.00045,30]
[311543580,1705209047683,-2800.0,0.00045,30]
[311543581,1705209047706,-264.93630861,0.00045,30]
[311543582,1705209047729,-3444428.61904945,0.00045,30]
[311543583,1705209048121,-468.44,0.0002214,2]
[311543584,1705209048130,-185.23901261,0.00022883,2]
[311543585,1705209048141,-133.76309269,0.00022883,2]
[311543586,1705209048151,-319.0021053,0.00022886,2]
[311543587,1705209048161,-155.29751951,0.0002298,2]
[311543588,1705209048176,-445803.58906015,0.0002298,2]
[311543589,1705209048185,-997059.44098059,0.0002298,2]
[311543590,1705209048194,-41627.0,0.00022986,2]
[311543591,1705209048204,-9678.60640692,0.00022997,2]
[311543592,1705209048214,-4903.47311796,0.00022998,2]
[311543593,1705209048224,-281.92514185,0.00022998,2]
[311543594,1705209048234,-271.76114414,0.00022998,2]
[311543595,1705209048243,-208.36580645,0.00022999,2]
[311543596,1705209048253,-229.67206448,0.00022999,2]
[311543597,1705209048263,-12289.26387543,0.00022999,2]
[311543598,1705209048273,-505265.21634996,0.00022999,2]
[311543599,1705209048284,-2109.39869412,0.00022999,2]
[311543600,1705209048294,-304.38534996,0.00022999,2]
[311543601,1705209048305,-2676.05922078,0.00022999,2]
[311543602,1705209048316,-117724.25280977,0.00022999,2]
[311543603,1705209048327,-150.0,0.00022999,2]
[311543604,1705209048337,-150.0,0.00022999,2]
[311543605,1705209048347,-150.0,0.00022999,2]
[311543606,1705209048357,-150.0,0.00022999,2]
[311543607,1705209048368,-150.0,0.00022999,2]
[311543608,1705209048378,-150.0,0.00022999,2]
[311543609,1705209048387,-150.0,0.00022999,2]
[311543610,1705209048397,-150.0,0.00022999,2]
[311543611,1705209048407,-150.0,0.00022999,2]
[311543612,1705209048416,-150.0,0.00022999,2]
[311543613,1705209048426,-150.0,0.00022999,2]
[311543614,1705209048435,-150.0,0.00022999,2]
[311543615,1705209048445,-150.0,0.00022999,2]
[311543616,1705209048456,-150.0,0.00022999,2]
[311543617,1705209048465,-1299517.74937612,0.00023,2]
[311543618,1705209048474,-14810.383457,0.00023,2]
[311543619,1705209048483,-1331258.79357529,0.00023,2]
[311543620,1705209048494,-251.06737025,0.00023,2]
[311543621,1705209048505,-3476.33330977,0.00023,2]
[311543622,1705209048542,-2912.12679887,0.00023,2]
[311543623,1705209048625,-299.6565,0.00022997,3]
[311543624,1705209048637,-68.24450694,0.00022997,3]
[311543625,1705209048646,-319.92444061,0.00023,2]
[311543626,1705209048661,-306.09729367,0.00023,2]
[311543627,1705209048671,-1293.85122542,0.00023,2]
[311543628,1705209048682,-613.46221154,0.00023,2]
[311543629,1705209048720,-675.0,0.0002298,2]
[311543630,1705209048730,-322561.47371916,0.00023,2]
[311543631,1705209048819,-319.0021053,0.00022889,2]
[311543632,1705209048828,-2370.57571137,0.00023,2]
[311543633,1705209048840,-313.44453014,0.00023,2]
[311543634,1705209048892,-3925.00001,0.00023,2]
[311543635,1705209048905,-3330.0,0.00023,2]
[311543636,1705209048916,-1571.05362242,0.00023,2]
[311543637,1705209048927,-1139.85839221,0.00023,2]
[311543638,1705209048938,-842.2671349,0.00023,2]
[311543639,1705209048949,-1243.17295712,0.00023,2]
[311543640,1705209048960,-16012.07684842,0.00023,2]
[311543641,1705209048975,-301.02675859,0.00023,2]
[311543642,1705209048990,-2470.56538937,0.00023,2]
[311543643,1705209049024,-601.015996,0.00023,2]
[311543644,1705209049036,-346.11167018,0.00023,2]
[311543645,1705209049048,-794.14994472,0.00023,2]
[311543646,1705209049059,-2621.4719078,0.00023,2]
[311543647,1705209049070,-763.43869,0.00023,2]
[311543648,1705209049080,-440.14819172,0.00023,2]
[311543649,1705209049091,-17015.05784702,0.00023,2]
[311543650,1705209049102,-3341.72895941,0.00023,2]
[311543651,1705209049113,-974.91771303,0.00023,2]
[311543652,1705209049125,-620.38351261,0.00023,2]
[311543653,1705209049136,-5573.94477553,0.00023,2]
[311543654,1705209049147,-6812.01156649,0.00023,2]
[311543655,1705209049159,-7289.2890756,0.00023,2]
[311543656,1705209049171,-21474.88392603,0.00023,2]
[311543657,1705209049182,-1898.46706726,0.00023,2]
[311543658,1705209049193,-293.30521316,0.00023,2]
[311543659,1705209049204,-301.72678331,0.00023,2]
[311543660,1705209049216,-517.19118167,0.00023,2]
[311543661,1705209049228,-2237.30399341,0.00023,2]
[311543662,1705209049239,-523.24272676,0.00023,2]
[311543663,1705209049251,-4730.30424645,0.00023,2]
[311543664,1705209049262,-12803.61959338,0.00023,2]
[311543665,1705209049273,-78862.81920655,0.00023,2]
[311543666,1705209049284,-449.80399366,0.00023,2]
[311543667,1705209049295,-1373.69775017,0.00023,2]
[311543668,1705209049307,-8491.64494076,0.00023,2]
[311543669,1705209049375,-322.8916,0.00023,2]
[311543670,1705209049386,-827.63640438,0.00023,2]
[311543671,1705209049398,-1188.89733028,0.00023,2]
[311543672,1705209049414,-2406.10921819,0.00023,2]
[311543673,1705209049426,-811.6161912,0.00023,2]
[311543674,1705209049437,-3685.87365913,0.00023,2]
[311543675,1705209049453,-263.6597197,0.00023,2]
[311543676,1705209049508,-1792.70238014,0.00023,2]
[311543677,1705209049541,-1376.42309378,0.00023,2]
[311543678,1705209049553,-1565.29012661,0.00023,2]
[311543679,1705209049564,-4647.005672,0.00023,2]
[311543680,1705209049575,-15578.91038629,0.00023,2]
[311543681,1705209049588,-4283.1475,0.00023,2]
[311543682,1705209049846,-3340.52122002,0.00023,2]
[311543683,1705209049857,-42458.77684657,0.00023,2]
[311543684,1705209049877,-11959.33463492,0.00023,2]
[311543685,1705209049888,-1207.22335713,0.00023,2]
[311543686,1705209049899,-734.80879788,0.00023,2]
[311543687,1705209054790,-5533.89539719,0.00035,120]
[311543688,1705209055090,-2795.29047687,0.0004,30]
[311543689,1705209055136,-752.21236731,0.00042,30]
[311543690,1705209055163,-751.0,0.00043,30]
[311543691,1705209055190,-150.0,0.000435,30]
[311543692,1705209055221,-500.0,0.00044575,30]
[311543693,1705209055244,-628.90434717,0.00044575,30]
[311543694,1705209055267,-500.0,0.00044575,30]
[311543695,1705209055292,-3283795.48565094,0.00045,30]
[311543696,1705209055314,-4000.0,0.00045,30]
[311543697,1705209055336,-4065.39332746,0.00045,30]
[311543698,1705209055360,-99999.999999,0.00045,30]
[311543699,1705209055383,-1000.0,0.00045,30]
[311543700,1705209055406,-57530.18689644,0.00045,30]
[311543701,1705209055432,-596.06870614,0.00045,30]
[311543702,1705209055454,-355.0,0.00045,30]
[311543703,1705209055477,-45856.27884789,0.00045,30]
[311543704,1705209055500,-704.473958,0.00045,120]
[311543705,1705209055522,-500.18520373,0.00045,120]
[311543706,1705209055544,-1000.0,0.00045042,30]
[311543707,1705209055567,-2106.18,0.00045123,30]
[311543708,1705209055590,-1340.5875,0.0004514,30]
[311543709,1705209055613,-500.0,0.00045205,30]
[311543710,1705209055635,-398.40231409,0.00045479,30]
[311543711,1705209055659,-808.32632502,0.0004588,100]
[311543712,1705209055682,-4393.95371985,0.000459,30]
[311543713,1705209055705,-5054.02968845,0.000459,30]
[311543714,1705209055729,-1143.85074771,0.000459,30]
[311543715,1705209055751,-149999.0,0.000459,30]
[311543716,1705209055775,-3031.0,0.000459,30]
[311543717,1705209055798,-149999.0,0.000459,30]
[311543718,1705209055820,-149999.0,0.000459,30]
[311543719,1705209055845,-11974.92465355,0.000459,30]
[311543720,1705209055868,-149999.0,0.000459,30]
[311543721,1705209055892,-25362.95283723,0.000459,30]
[311543722,1705209055915,-4616.47377536,0.000459,30]
[311543723,1705209055938,-5406.05102473,0.000459,30]
[311543724,1705209055960,-1166.09449794,0.000459,30]
[311543725,1705209055983,-7068.0,0.000459,30]
[311543726,1705209056009,-1013.83466001,0.00045995,30]
[311543727,1705209056033,-1000.0,0.00046,30]
[311543728,1705209056055,-250.0,0.00046,30]
[311543729,1705209056079,-1486.0,0.00046,30]
[311543730,1705209056102,-1000.0,0.00046056,30]
[311543731,1705209056128,-308.55393733,0.00046456,31]
[311543732,1705209056154,-500.0,0.00046575,30]
[311543733,1705209056180,-326.25844417,0.00046575,120]
[311543734,1705209056202,-637.883712,0.00046575,120]
[311543735,1705209056224,-500.0,0.00046575,120]
[311543736,1705209056247,-500.0,0.00046575,120]
[311543737,1705209056270,-500.0,0.00046575,120]
[311543738,1705209056292,-519.51054344,0.00046575,120]
[311543739,1705209056317,-500.0,0.00046575,120]
[311543740,1705209056341,-500.0,0.00046575,120]
[311543741,1705209056365,-500.0,0.00046575,120]
[311543742,1705209056389,-330.90434717,0.00046575,120]
[311543743,1705209056416,-500.0,0.00046575,120]
[311543744,1705209056438,-500.0,0.00046575,120]
[311543745,1705209056460,-314.45217358,0.00046575,120]
[311543746,1705209056485,-534.52426656,0.00046849,30]
[311543747,1705209056509,-308.55393733,0.00046947,33]
[311543748,1705209056532,-250.0,0.00047,30]
[311543749,1705209056555,-2593.04953073,0.00047,30]
[311543750,1705209056577,-182.32394229,0.00047,30]
[311543751,1705209056600,-246532.0965077,0.00047,30]
[311543752,1705209056622,-2611.02198559,0.00047,30]
[311543753,1705209056644,-177.84766512,0.00047,30]
[311543754,1705209056667,-1000.0,0.0004707,30]
[311543755,1705209056690,-500.0,0.00047945,30]
[311543756,1705209056714,-535.61491223,0.00048,31]
[311543757,1705209056737,-250.0,0.00048,30]
[311543758,1705209056759,-22989.02671479,0.00048,30]
[311543759,1705209056781,-13549.75184364,0.00048,30]
[311543760,1705209056805,-1000.0,0.00048084,30]
[311543761,1705209056828,-455555.0,0.00048755,30]
[311543762,1705209056854,-339.7472106,0.00048852,30]
[311543763,1705209056878,-532.99200775,0.00048856,30]
[311543764,1705209056900,-200.0,0.00048856,30]
[311543765,1705209056925,-1602.67391729,0.00048858,30]
[311543766,1705209056948,-339.7472106,0.00048859,30]
[311543767,1705209056973,-3562.21725335,0.00048859,30]
[311543768,1705209056997,-339.7472106,0.00048862,30]
[311543769,1705209057019,-126268.31578482,0.0004887,30]
[311543770,1705209057041,-510.68471718,0.0004887,30]
[311543771,1705209057064,-200.0,0.00048871,30]
[311543772,1705209057088,-213.73303516,0.00048872,30]
[311543773,1705209057111,-200.0,0.00048873,30]
[311543774,1705209057133,-213.73303516,0.00048874,30]
[311543775,1705209057157,-510.68471718,0.00048874,30]
[311543776,1705209057181,-1602.67391729,0.00048875,30]
[311543777,1705209057203,-510.68471718,0.00048877,30]
[311543778,1705209057226,-532.99200775,0.00048878,30]
[311543779,1705209057249,-532.99200775,0.00048881,30]
[311543780,1705209057272,-200.0,0.00048884,30]